fUST/lending_fUST_20240419
["ID","MTS","AMOUNT","RATE_DAILY","PERIOD"]
[322911145,1713493854268,-500.0,0.00031545,6]
[322911146,1713493854277,-500.0,0.00031545,6]
[322911147,1713493854287,-500.0,0.00031545,6]
[322911148,1713493854297,-500.0,0.00031545,6]
[322911149,1713493854306,-508.75907943,0.00031545,6]
[322911150,1713493854319,-500.0,0.00031545,6]
[322911151,1713493854329,-502.70888306,0.00031545,6]
[322911152,1713493854338,-386.56153432,0.00031545,6]
[322911153,1713493854347,-500.0,0.00031545,6]
[322911154,1713493854357,-500.0,0.00031545,6]
[322911155,1713493854366,-500.0,0.00031545,6]
[322911156,1713493854376,-527.00000073,0.00031545,6]
[322911157,1713493854386,-500.0,0.00031545,6]
[322911158,1713493854395,-500.0,0.00031545,6]
[322911159,1713493854404,-518.01156463,0.00031545,6]
[322911160,1713493854414,-500.0,0.00031545,6]
[322911161,1713493854423,-500.0,0.00031545,6]
[322911162,1713493854432,-504.46610224,0.00031545,6]
[322911163,1713493854441,-357.57429868,0.00031545,6]
[322911164,1713493854451,-500.0,0.00031545,6]
[322911165,1713493854460,-513.43734417,0.00031545,6]
[322911166,1713493854470,-509.57382265,0.00031545,6]
[322911167,1713493854479,-500.0,0.00031545,6]
[322911168,1713493854488,-500.0,0.00031545,6]
[322911169,1713493854498,-500.0,0.00031545,6]
[322911170,1713493854508,-500.0,0.00031545,6]
[322911171,1713493854517,-500.0,0.00031545,6]
[322911172,1713493854529,-510.73153465,0.00031545,6]
[322911173,1713493854540,-504.55530487,0.00031545,6]
[322911174,1713493854550,-505.25022162,0.00031545,6]
[322911175,1713493854559,-171.63386419,0.00031618,7]
[322911176,1713493854573,-427.19602984,0.00031678,7]
[322911177,1713493854582,-151.80808341,0.00031771,7]
[322911178,1713493854594,-500.0,0.0003178,6]
[322911179,1713493854604,-896.14,0.0003178,6]
[322911180,1713493854614,-500.0,0.0003178,6]
[322911181,1713493854624,-664.86,0.0003178,6]
[322911182,1713493854634,-500.0,0.0003178,6]
[322911183,1713493854644,-500.0,0.0003178,6]
[322911184,1713493854653,-1183.16,0.0003178,6]
[322911185,1713493854663,-1087.01,0.0003178,6]
[322911186,1713493854674,-500.0,0.0003178,6]
[322911187,1713493854683,-500.0,0.0003178,6]
[322911189,1713493854693,-832.48,0.0003178,6]
[322911190,1713493854702,-500.0,0.0003178,6]
[322911192,1713493854713,-500.0,0.0003178,6]
[322911193,1713493854722,-1212.86,0.0003178,6]
[322911194,1713493854731,-500.0,0.0003178,6]
[322911195,1713493854740,-354.99824243,0.0003178,6]
[322911197,1713493854750,-500.0,0.0003178,6]
[322911199,1713493854759,-526.24654845,0.0003178,6]
[322911200,1713493854768,-500.0,0.0003178,6]
[322911202,1713493854777,-500.0,0.0003178,6]
[322911204,1713493854786,-2500.67,0.0003178,6]
[322911205,1713493854795,-914.71,0.0003178,6]
[322911206,1713493854805,-500.0,0.0003178,6]
[322911207,1713493854814,-500.0,0.0003178,6]
[322911209,1713493854827,-185.34138498,0.0003178,6]
[322911211,1713493854837,-903.56,0.0003178,6]
[322911213,1713493854846,-614.12,0.0003178,6]
[322911214,1713493854855,-500.0,0.0003178,6]
[322911216,1713493854864,-500.0,0.0003178,6]
[322911217,1713493854874,-521.96,0.0003178,6]
[322911218,1713493854883,-500.0,0.0003178,6]
[322911219,1713493854892,-1949.07,0.0003178,6]
[322911220,1713493854902,-500.0,0.0003178,6]
[322911221,1713493854911,-500.0,0.0003178,6]
[322911222,1713493854920,-500.0,0.0003178,6]
[322911223,1713493854929,-547.25,0.0003178,6]
[322911224,1713493854939,-500.0,0.0003178,6]
[322911225,1713493854948,-500.0,0.0003178,6]
[322911226,1713493854958,-437.30013533,0.0003178,6]
[322911227,1713493854968,-1029.38,0.0003178,6]
[322911228,1713493854978,-1566.67,0.0003178,6]
[322911229,1713493854988,-515.74284207,0.0003178,6]
[322911230,1713493854997,-500.0,0.0003178,6]
[322911231,1713493855006,-500.0,0.0003178,6]
[322911232,1713493855015,-500.0,0.0003178,6]
[322911233,1713493855024,-500.0,0.0003178,6]
[322911234,1713493855034,-500.0,0.0003178,6]
[322911235,1713493855043,-500.0,0.0003178,6]
[322911236,1713493855052,-500.0,0.0003178,6]
[322911237,1713493855061,-752.33,0.0003178,6]
[322911238,1713493855075,-1623.44,0.0003178,6]
[322911239,1713493855084,-500.0,0.0003178,6]
[322911240,1713493855093,-500.0,0.0003178,6]
[322911241,1713493855102,-500.0,0.0003178,6]
[322911242,1713493855112,-500.0,0.0003178,6]
[322911243,1713493855121,-701.26,0.0003178,6]
[322911244,1713493855130,-500.0,0.0003178,6]
[322911245,1713493855139,-500.0,0.0003178,6]
[322911246,1713493855149,-1637.79,0.0003178,6]
[322911247,1713493855158,-2083.33,0.0003178,6]
[322911248,1713493855167,-329.08509046,0.0003178,6]
[322911249,1713493855176,-500.0,0.0003178,6]
[322911250,1713493855185,-500.0,0.0003178,6]
[322911251,1713493855195,-500.0,0.0003178,6]
[322911252,1713493855204,-500.0,0.0003178,6]
[322911253,1713493855213,-500.0,0.0003178,6]
[322911254,1713493855222,-500.0,0.0003178,6]
[322911255,1713493855231,-25237.66,0.0003178,6]
[322911256,1713493855241,-737.38,0.0003178,6]
[322911257,1713493855252,-1515.19,0.0003178,6]
[322911258,1713493855264,-500.0,0.0003178,6]
[322911259,1713493855274,-500.0,0.0003178,6]
[322911260,1713493855283,-500.0,0.0003178,6]
[322911261,1713493855292,-500.0,0.0003178,6]
[322911262,1713493855301,-981.69,0.0003178,6]
[322911263,1713493855312,-954.56,0.0003178,6]
[322911264,1713493855325,-21078.95,0.0003178,6]
[322911265,1713493855396,-500.0,0.0003178,6]
[322911266,1713493855413,-500.0,0.0003178,6]
[322911267,1713493855422,-500.0,0.0003178,6]
[322911268,1713493855431,-500.0,0.0003178,6]
[322911269,1713493855440,-500.0,0.0003178,6]
[322911270,1713493855450,-548.54,0.0003178,6]
[322911271,1713493855459,-500.0,0.0003178,6]
[322911272,1713493855468,-500.0,0.0003178,6]
[322911273,1713493855478,-2924.29,0.0003178,6]
[322911274,1713493855488,-701.18,0.0003178,6]
[322911275,1713493855497,-630.27,0.0003178,6]
[322911276,1713493855507,-1687.91,0.0003178,6]
[322911277,1713493855517,-926.53,0.0003178,6]
[322911278,1713493855526,-500.0,0.0003178,6]
[322911279,1713493855536,-634.37047996,0.0003178,6]
[322911280,1713493855546,-947.82,0.0003178,6]
[322911281,1713493855556,-500.0,0.0003178,6]
[322911282,1713493855565,-500.0,0.0003178,6]
[322911284,1713493855578,-500.0,0.0003178,6]
[322911285,1713493855588,-500.0,0.0003178,6]
[322911286,1713493855597,-691.97,0.0003178,6]
[322911287,1713493855606,-500.0,0.0003178,6]
[322911289,1713493855616,-1252.32,0.0003178,6]
[322911291,1713493855625,-500.0,0.0003178,6]
[322911293,1713493855636,-500.0,0.0003178,6]
[322911294,1713493855646,-500.0,0.0003178,6]
[322911295,1713493855655,-500.0,0.0003178,6]
[322911296,1713493855664,-595.02727212,0.0003178,6]
[322911297,1713493855673,-10240.71,0.0003178,6]
[322911298,1713493855682,-1056.82,0.0003178,6]
[322911299,1713493855691,-974.71,0.0003178,6]
[322911300,1713493855700,-240.05681404,0.0003178,6]
[322911301,1713493855710,-500.0,0.0003178,6]
[322911302,1713493855719,-1486.98,0.0003178,6]
[322911303,1713493855728,-500.0,0.0003178,6]
[322911304,1713493855737,-500.0,0.0003178,6]
[322911305,1713493855746,-7306.0,0.0003178,6]
[322911306,1713493855755,-500.0,0.0003178,6]
[322911307,1713493855765,-500.0,0.0003178,6]
[322911308,1713493855774,-574.09,0.0003178,6]
[322911309,1713493855783,-500.0,0.0003178,6]
[322911310,1713493855793,-500.0,0.0003178,6]
[322911311,1713493855802,-591.76,0.0003178,6]
[322911312,1713493855812,-1126.35,0.0003178,6]
[322911313,1713493855825,-10851.06,0.0003178,6]
[322911314,1713493855834,-500.0,0.0003178,6]
[322911315,1713493855843,-500.0,0.0003178,6]
[322911316,1713493855853,-11158.69,0.0003178,6]
[322911317,1713493855862,-500.0,0.0003178,6]
[322911318,1713493855871,-500.0,0.0003178,6]
[322911319,1713493855881,-500.0,0.0003178,2]
[322911320,1713493855890,-500.0,0.0003178,6]
[322911321,1713493855899,-500.0,0.0003178,6]
[322911322,1713493855908,-500.0,0.00031796,6]
[322911323,1713493855918,-1471.35,0.00031796,6]
[322911324,1713493855927,-504.51,0.00031796,6]
[322911325,1713493855937,-508.92020326,0.00031819,6]
[322911326,1713493855946,-500.0,0.00031819,6]
[322911327,1713493855956,-500.0,0.00031819,6]
[322911328,1713493855965,-500.0,0.00031819,6]
[322911329,1713493855974,-500.0,0.00031819,6]
[322911330,1713493855984,-500.0,0.00031819,6]
[322911331,1713493855993,-500.0,0.00031819,6]
[322911332,1713493856003,-500.0,0.00031819,6]
[322911333,1713493856012,-500.0,0.00031819,6]
[322911334,1713493856021,-500.0,0.00031819,6]
[322911335,1713493856031,-500.0,0.00031819,6]
[322911336,1713493856040,-555.18582283,0.00031819,6]
[322911337,1713493856050,-500.0,0.00031819,6]
[322911338,1713493856059,-521.33013556,0.00031819,6]
[322911339,1713493856068,-532.31249271,0.00031819,6]
[322911340,1713493856082,-500.0,0.00031819,6]
[322911341,1713493856091,-500.0,0.00031819,6]
[322911342,1713493856100,-356.38855697,0.00031819,6]
[322911343,1713493856109,-500.0,0.00031819,6]
[322911344,1713493856119,-151.80808341,0.0003182,7]
[322911345,1713493856129,-500.0,0.00031895,6]
[322911346,1713493856139,-1471.35,0.00031895,6]
[322911347,1713493856148,-504.51,0.00031895,6]
[322911348,1713493856158,-500.0,0.00031895,6]
[322911349,1713493856168,-500.0,0.00031896,6]
[322911350,1713493856177,-500.0,0.00031896,6]
[322911351,1713493856189,-500.0,0.00031896,6]
[322911352,1713493856198,-500.0,0.00031896,6]
[322911353,1713493856208,-538.83795198,0.00031896,6]
[322911354,1713493856218,-1471.35,0.00031896,6]
[322911355,1713493856228,-1471.35,0.00031896,6]
[322911356,1713493856238,-1471.35,0.00031896,6]
[322911357,1713493856247,-1471.35,0.00031896,6]
[322911358,1713493856257,-1471.35,0.00031896,6]
[322911359,1713493856267,-504.51,0.00031896,6]
[322911360,1713493856276,-504.51,0.00031896,6]
[322911361,1713493856285,-504.51,0.00031896,6]
[322911362,1713493856295,-504.51,0.00031896,6]
[322911363,1713493856304,-504.51,0.00031896,6]
[322911364,1713493856313,-500.0,0.00031896,6]
[322911365,1713493856327,-500.0,0.00031896,6]
[322911366,1713493856336,-500.0,0.00031896,6]
[322911367,1713493856346,-500.0,0.00031896,6]
[322911368,1713493856356,-500.0,0.00031896,6]
[322911369,1713493856365,-1471.35,0.00031898,6]
[322911370,1713493856375,-504.51,0.00031898,6]
[322911371,1713493856384,-500.0,0.00031898,6]
[322911372,1713493856394,-1471.35,0.00031899,6]
[322911373,1713493856404,-1471.35,0.00031899,6]
[322911374,1713493856413,-1471.35,0.00031899,6]
[322911375,1713493856422,-1471.35,0.00031899,6]
[322911376,1713493856431,-1471.35,0.00031899,6]
[322911377,1713493856440,-1471.35,0.00031899,6]
[322911378,1713493856450,-1471.35,0.00031899,6]
[322911379,1713493856460,-1471.35,0.00031899,6]
[322911380,1713493856469,-1471.43606496,0.00031899,6]
[322911381,1713493856479,-504.51,0.00031899,6]
[322911382,1713493856488,-504.51,0.00031899,6]
[322911383,1713493856498,-504.51,0.00031899,6]
[322911384,1713493856507,-504.51,0.00031899,6]
[322911385,1713493856581,-504.51,0.00031899,6]
[322911386,1713493856590,-504.51,0.00031899,6]
[322911387,1713493856599,-504.51,0.00031899,6]
[322911388,1713493856609,-504.51,0.00031899,6]
[322911389,1713493856618,-504.64587406,0.00031899,6]
[322911390,1713493856627,-500.0,0.00031899,6]
[322911391,1713493856638,-500.0,0.00031899,6]
[322911392,1713493856648,-500.0,0.00031899,6]
[322911393,1713493856659,-500.0,0.00031899,6]
[322911394,1713493856668,-500.0,0.00031899,6]
[322911395,1713493856677,-500.0,0.00031899,6]
[322911396,1713493856686,-254.50420718,0.00031899,6]
[322911397,1713493856696,-180.99188609,0.00031974,7]
[322911398,1713493856706,-171.63386419,0.00031989,7]
[322911399,1713493856716,-191.2801184,0.00032,4]
[322911400,1713493856725,-3909.0,0.00032024,35]
[322911401,1713493856735,-3909.0,0.00032034,35]
[322911402,1713493856746,-200.65,0.00032044,35]
[322911403,1713493856755,-161.69,0.00032044,35]
[322911404,1713493856765,-3909.0,0.00032044,35]
[322911405,1713493856775,-500.0,0.00032054,6]
[322911406,1713493856784,-896.14,0.00032054,6]
[322911407,1713493856794,-500.0,0.00032054,6]
[322911408,1713493856804,-664.86,0.00032054,6]
[322911409,1713493856813,-500.0,0.00032054,6]
[322911410,1713493856827,-500.0,0.00032054,6]
[322911411,1713493856837,-1183.16,0.00032054,6]
[322911412,1713493856847,-1087.01,0.00032054,6]
[322911413,1713493856857,-500.0,0.00032054,6]
[322911414,1713493856867,-500.0,0.00032054,6]
[322911415,1713493856877,-832.48,0.00032054,6]
[322911416,1713493856886,-500.0,0.00032054,6]
[322911417,1713493856896,-500.0,0.00032054,6]
[322911418,1713493856905,-1212.86,0.00032054,6]
[322911419,1713493856915,-500.0,0.00032054,6]
[322911420,1713493856924,-524.66926658,0.00032054,6]
[322911421,1713493856933,-500.0,0.00032054,6]
[322911422,1713493856942,-500.0,0.00032054,6]
[322911423,1713493856952,-2500.67,0.00032054,6]
[322911424,1713493856961,-914.71,0.00032054,6]
[322911425,1713493856971,-500.0,0.00032054,6]
[322911426,1713493856981,-500.0,0.00032054,6]
[322911427,1713493856990,-903.56,0.00032054,6]
[322911428,1713493857001,-614.12,0.00032054,6]
[322911430,1713493857010,-500.0,0.00032054,6]
[322911432,1713493857020,-193.79991739,0.00032054,6]
[322911433,1713493857029,-521.96,0.00032054,6]
[322911434,1713493857039,-500.0,0.00032054,6]
[322911435,1713493857048,-1949.07,0.00032054,6]
[322911437,1713493857058,-500.0,0.00032054,6]
[322911439,1713493857067,-500.0,0.00032054,6]
[322911440,1713493857080,-500.0,0.00032054,6]
[322911442,1713493857090,-547.25,0.00032054,6]
[322911444,1713493857099,-500.0,0.00032054,6]
[322911446,1713493857108,-527.82466514,0.00032054,6]
[322911447,1713493857117,-1029.38,0.00032054,6]
[322911448,1713493857127,-1566.67,0.00032054,6]
[322911449,1713493857136,-521.84959731,0.00032054,6]
[322911450,1713493857146,-500.0,0.00032054,6]
[322911451,1713493857155,-500.0,0.00032054,6]
[322911452,1713493857164,-500.0,0.00032054,6]
[322911453,1713493857173,-500.0,0.00032054,6]
[322911454,1713493857182,-500.0,0.00032054,6]
[322911455,1713493857191,-500.0,0.00032054,6]
[322911456,1713493857200,-752.33,0.00032054,6]
[322911457,1713493857210,-1623.44,0.00032054,6]
[322911458,1713493857219,-500.0,0.00032054,6]
[322911459,1713493857228,-500.0,0.00032054,6]
[322911461,1713493857237,-318.30726758,0.00032054,6]
[322911463,1713493857246,-500.0,0.00032054,6]
[322911465,1713493857255,-701.26,0.00032054,6]
[322911467,1713493857265,-527.84003039,0.00032054,6]
[322911469,1713493857274,-500.0,0.00032054,6]
[322911471,1713493857283,-1637.79,0.00032054,6]
[322911473,1713493857292,-2083.33,0.00032054,6]
[322911475,1713493857301,-500.0,0.00032054,6]
[322911477,1713493857310,-500.0,0.00032054,6]
[322911479,1713493857323,-500.0,0.00032054,6]
[322911481,1713493857332,-279.9702716,0.00032054,6]
[322911483,1713493857341,-500.0,0.00032054,6]
[322911485,1713493857350,-500.0,0.00032054,6]
[322911487,1713493857359,-25237.66,0.00032054,6]
[322911489,1713493857368,-737.38,0.00032054,6]
[322911491,1713493857378,-1515.19,0.00032054,6]
[322911493,1713493857387,-500.0,0.00032054,6]
[322911495,1713493857396,-500.0,0.00032054,6]
[322911497,1713493857405,-500.0,0.00032054,6]
[322911499,1713493857414,-227.28797527,0.00032054,6]
[322911501,1713493857423,-981.69,0.00032054,6]
[322911503,1713493857432,-954.56,0.00032054,6]
[322911505,1713493857441,-21078.95,0.00032054,6]
[322911507,1713493857450,-500.0,0.00032054,6]
[322911509,1713493857460,-500.0,0.00032054,6]
[322911511,1713493857470,-500.0,0.00032054,6]
[322911513,1713493857480,-500.0,0.00032054,6]
[322911515,1713493857489,-500.0,0.00032054,6]
[322911517,1713493857499,-548.54,0.00032054,6]
[322911519,1713493857509,-500.0,0.00032054,6]
[322911521,1713493857518,-500.0,0.00032054,6]
[322911523,1713493857528,-2924.29,0.00032054,6]
[322911525,1713493857537,-701.18,0.00032054,6]
[322911527,1713493857546,-630.27,0.00032054,6]
[322911529,1713493857555,-1687.91,0.00032054,6]
[322911531,1713493857564,-926.53,0.00032054,6]
[322911533,1713493857577,-500.0,0.00032054,6]
[322911535,1713493857586,-947.82,0.00032054,6]
[322911537,1713493857595,-500.0,0.00032054,6]
[322911545,1713493857669,-500.0,0.00032054,6]
[322911547,1713493857679,-167.4058712,0.00032054,6]
[322911549,1713493857689,-500.0,0.00032054,6]
[322911551,1713493857699,-691.97,0.00032054,6]
[322911553,1713493857708,-500.0,0.00032054,6]
[322911555,1713493857718,-1252.32,0.00032054,6]
[322911557,1713493857729,-500.0,0.00032054,6]
[322911559,1713493857738,-500.0,0.00032054,6]
[322911561,1713493857748,-295.90665389,0.00032054,6]
[322911563,1713493857757,-500.0,0.00032054,6]
[322911565,1713493857766,-10240.71,0.00032054,6]
[322911567,1713493857776,-1056.82,0.00032054,6]
[322911569,1713493857785,-974.71,0.00032054,6]
[322911571,1713493857795,-341.81632943,0.00032054,6]
[322911573,1713493857804,-1486.98,0.00032054,6]
[322911574,1713493857813,-511.64021726,0.00032054,6]
[322911575,1713493857826,-500.0,0.00032054,6]
[322911576,1713493857835,-7306.0,0.00032054,6]
[322911578,1713493857844,-500.0,0.00032054,6]
[322911580,1713493857853,-500.0,0.00032054,6]
[322911582,1713493857862,-574.09,0.00032054,6]
[322911584,1713493857871,-500.0,0.00032054,6]
[322911585,1713493857881,-500.0,0.00032054,6]
[322911587,1713493857890,-591.76,0.00032054,6]
[322911589,1713493857902,-1126.35,0.00032054,6]
[322911591,1713493857911,-10851.06,0.00032054,6]
[322911593,1713493857919,-500.0,0.00032054,6]
[322911595,1713493857929,-500.0,0.00032054,6]
[322911597,1713493857938,-11158.69,0.00032054,6]
[322911599,1713493857947,-500.0,0.00032054,6]
[322911600,1713493857957,-500.0,0.00032054,6]
[322911601,1713493857966,-500.0,0.00032054,2]
[322911602,1713493857975,-500.0,0.00032054,6]
[322911603,1713493857984,-500.0,0.00032054,6]
[322911604,1713493857993,-500.0,0.00032093,6]
[322911605,1713493858003,-500.0,0.00032093,6]
[322911606,1713493858012,-500.0,0.00032093,6]
[322911607,1713493858022,-500.0,0.00032093,6]
[322911608,1713493858032,-500.0,0.00032093,6]
[322911609,1713493858041,-218.23793308,0.00032093,6]
[322911611,1713493858050,-500.0,0.00032093,6]
[322911612,1713493858059,-500.0,0.00032093,6]
[322911614,1713493858068,-500.0,0.00032093,6]
[322911615,1713493858084,-607.11987287,0.00032093,6]
[322911616,1713493858093,-516.0759012,0.00032093,6]
[322911617,1713493858102,-500.0,0.00032093,6]
[322911618,1713493858112,-500.0,0.00032093,6]
[322911619,1713493858121,-500.0,0.00032093,6]
[322911620,1713493858131,-153.80856891,0.00032242,7]
[322911621,1713493858148,-905.61665966,0.00032243,7]
[322911622,1713493858165,-166.666666,0.00032254,2]
[322911623,1713493858181,-157.0,0.00032298,35]
[322911624,1713493858201,-150.5,0.00032298,35]
[322911625,1713493858217,-202.72,0.00032298,35]
[322911626,1713493858233,-157.0,0.00032308,35]
[322911627,1713493858250,-150.5,0.00032308,35]
[322911628,1713493858266,-150.5,0.00032308,35]
[322911629,1713493858285,-150.5,0.00032318,35]
[322911630,1713493858301,-157.0,0.00032318,35]
[322911631,1713493858319,-150.5,0.00032318,35]
[322911632,1713493858342,-500.0,0.00032328,6]
[322911633,1713493858356,-896.14,0.00032328,6]
[322911634,1713493858372,-500.0,0.00032328,6]
[322911635,1713493858387,-664.86,0.00032328,6]
[322911636,1713493858402,-328.16863233,0.00032328,6]
[322911637,1713493858417,-580.35720174,0.00032328,6]
[322911638,1713493858432,-1183.16,0.00032328,6]
[322911639,1713493858447,-1087.01,0.00032328,6]
[322911640,1713493858461,-500.0,0.00032328,6]
[322911641,1713493858475,-500.0,0.00032328,6]
[322911642,1713493858490,-832.48,0.00032328,6]
[322911643,1713493858504,-500.0,0.00032328,6]
[322911644,1713493858518,-500.0,0.00032328,6]
[322911645,1713493858533,-1212.86,0.00032328,6]
[322911646,1713493858548,-353.76793591,0.00032328,6]
[322911647,1713493858562,-500.0,0.00032328,6]
[322911648,1713493858580,-500.0,0.00032328,6]
[322911649,1713493858595,-2500.67,0.00032328,6]
[322911650,1713493858609,-914.71,0.00032328,6]
[322911651,1713493858624,-500.0,0.00032328,6]
[322911652,1713493858643,-401.30768069,0.00032328,6]
[322911653,1713493858657,-903.56,0.00032328,6]
[322911654,1713493858672,-614.12,0.00032328,6]
[322911655,1713493858687,-500.0,0.00032328,6]
[322911656,1713493858702,-521.96,0.00032328,6]
[322911657,1713493858718,-500.0,0.00032328,6]
[322911658,1713493858731,-1949.07,0.00032328,6]
[322911659,1713493858747,-500.0,0.00032328,6]
[322911660,1713493858761,-500.0,0.00032328,6]
[322911661,1713493858774,-500.0,0.00032328,6]
[322911662,1713493858788,-547.25,0.00032328,6]
[322911663,1713493858803,-500.0,0.00032328,6]
[322911664,1713493858817,-1029.38,0.00032328,6]
[322911665,1713493858836,-1566.67,0.00032328,6]
[322911666,1713493858851,-500.0,0.00032328,6]
[322911667,1713493858865,-500.0,0.00032328,6]
[322911668,1713493858880,-240.97184571,0.00032328,6]
[322911669,1713493858894,-500.0,0.00032328,6]
[322911670,1713493858985,-500.0,0.00032328,6]
[322911671,1713493859005,-500.0,0.00032328,6]
[322911672,1713493859015,-752.33,0.00032328,6]
[322911673,1713493859024,-1623.44,0.00032328,6]
[322911674,1713493859033,-500.0,0.00032328,6]
[322911675,1713493859043,-500.0,0.00032328,6]
[322911676,1713493859052,-500.0,0.00032328,6]
[322911677,1713493859062,-701.26,0.00032328,6]
[322911678,1713493859071,-500.0,0.00032328,6]
[322911679,1713493859085,-1637.79,0.00032328,6]
[322911680,1713493859094,-2083.33,0.00032328,6]
[322911681,1713493859103,-500.0,0.00032328,6]
[322911682,1713493859112,-500.0,0.00032328,6]
[322911683,1713493859123,-500.0,0.00032328,6]
[322911684,1713493859132,-500.0,0.00032328,6]
[322911685,1713493859141,-476.76240331,0.00032328,6]
[322911686,1713493859150,-737.38,0.00032328,6]
[322911687,1713493859159,-25237.66,0.00032328,6]
[322911688,1713493859168,-1515.19,0.00032328,6]
[322911689,1713493859177,-500.0,0.00032328,6]
[322911690,1713493859188,-500.0,0.00032328,6]
[322911691,1713493859197,-500.0,0.00032328,6]
[322911692,1713493859207,-981.69,0.00032328,6]
[322911693,1713493859216,-954.56,0.00032328,6]
[322911694,1713493859227,-21078.95,0.00032328,6]
[322911695,1713493859237,-500.0,0.00032328,6]
[322911696,1713493859247,-500.0,0.00032328,6]
[322911697,1713493859257,-500.0,0.00032328,6]
[322911698,1713493859268,-404.73718131,0.00032328,6]
[322911699,1713493859278,-500.0,0.00032328,6]
[322911700,1713493859288,-548.54,0.00032328,6]
[322911701,1713493859297,-500.0,0.00032328,6]
[322911702,1713493859307,-500.0,0.00032328,6]
[322911703,1713493859317,-2924.29,0.00032328,6]
[322911704,1713493859330,-701.18,0.00032328,6]
[322911705,1713493859340,-630.27,0.00032328,6]
[322911706,1713493859350,-1687.91,0.00032328,6]
[322911707,1713493859359,-926.53,0.00032328,6]
[322911708,1713493859369,-500.0,0.00032328,6]
[322911709,1713493859378,-947.82,0.00032328,6]
[322911710,1713493859387,-500.0,0.00032328,6]
[322911711,1713493859397,-500.0,0.00032328,6]
[322911712,1713493859406,-289.10814332,0.00032328,6]
[322911713,1713493859416,-691.97,0.00032328,6]
[322911714,1713493859425,-500.0,0.00032328,6]
[322911715,1713493859435,-1252.32,0.00032328,6]
[322911716,1713493859445,-500.0,0.00032328,6]
[322911717,1713493859454,-500.0,0.00032328,6]
[322911718,1713493859464,-500.0,0.00032328,6]
[322911719,1713493859474,-10240.71,0.00032328,6]
[322911720,1713493859484,-1056.82,0.00032328,6]
[322911721,1713493859494,-1486.98,0.00032328,6]
[322911722,1713493859504,-974.71,0.00032328,6]
[322911723,1713493859514,-417.6783059,0.00032328,6]
[322911724,1713493859523,-7306.0,0.00032328,6]
[322911725,1713493859533,-500.0,0.00032328,6]
[322911726,1713493859543,-500.0,0.00032328,6]
[322911727,1713493859553,-574.09,0.00032328,6]
[322911728,1713493859562,-229.84450065,0.00032328,6]
[322911729,1713493859571,-500.0,0.00032328,6]
[322911730,1713493859583,-591.76,0.00032328,6]
[322911731,1713493859593,-1126.35,0.00032328,6]
[322911732,1713493859602,-10851.06,0.00032328,6]
[322911733,1713493859613,-500.0,0.00032328,6]
[322911734,1713493859622,-500.0,0.00032328,6]
[322911735,1713493859634,-11158.69,0.00032328,6]
[322911736,1713493859644,-500.0,0.00032328,6]
[322911737,1713493859653,-500.0,0.00032328,6]
[322911738,1713493859663,-500.0,0.00032328,2]